bitfinex-derivatives/quotes_BTCF0:USTF0_20250411
["timestamp","ask_amount","ask_price","bid_price","bid_amount"]
[1744384884743,0.1218774,82089.0,82088.0,0.0609392]
[1744384885043,0.1218774,82089.0,82087.0,0.00018272]
[1744384885044,0.1218789,82088.0,82087.0,0.00018272]
[1744384885246,0.1944789,82088.0,82087.0,0.00018272]
[1744384885947,0.1944789,82088.0,82087.0,0.12206312]
[1744384886852,0.1944789,82088.0,82087.0,0.00018272]
[1744384887149,0.1944789,82088.0,82087.0,0.12206312]
[1744384887645,0.1944789,82088.0,82087.0,0.00018272]
[1744384887846,0.1944789,82088.0,82087.0,0.12206312]
[1744384888848,0.1944789,82088.0,82087.0,0.19126312]
[1744384889442,0.3608,82113.0,82096.0,0.121867]
[1744384889640,0.3608,82124.0,82096.0,0.121867]
[1744384889641,0.4217183,82117.0,82111.0,0.1218448]
[1744384889948,0.06098541,82125.0,82111.0,0.4826448]
[1744384890150,0.0726,82127.0,82119.0,0.1218329]
[1744384890342,5.401e-05,82129.0,82119.0,0.4826329]
[1744384890544,0.0609087,82130.0,82119.0,0.6264329]
[1744384890742,0.00504,82120.0,82119.0,0.6264329]
[1744384891148,0.00018272,82128.0,82127.0,0.121821]
[1744384891452,0.00018272,82128.0,82127.0,0.482621]
[1744384891755,0.00022272,82128.0,82127.0,0.482621]
[1744384891937,0.00022272,82128.0,82127.0,0.627421]
[1744384892844,0.00022272,82128.0,82127.0,0.63637618]
[1744384893052,0.12204222,82128.0,82127.0,0.627421]
[1744384894542,0.00022272,82128.0,82127.0,0.627421]
[1744384894749,0.00022272,82128.0,82127.0,0.63671459]
[1744384894952,0.00018272,82128.0,82127.0,0.63671459]
[1744384895152,0.00022272,82128.0,82127.0,0.63671459]
[1744384897149,0.12204222,82128.0,82127.0,0.63671459]
[1744384897345,0.00022272,82128.0,82127.0,0.63671459]
[1744384899951,7.291e-05,82141.0,82136.0,0.1218077]
[1744384900250,7.291e-05,82141.0,82136.0,0.4826077]
[1744384900450,0.1217956,82145.0,82140.0,0.0609001]
[1744384900752,0.005,82146.0,82145.0,0.1217943]
[1744384900949,0.005,82146.0,82145.0,0.1953943]
[1744384901158,0.00504,82146.0,82145.0,0.2651943]
[1744384901457,0.005,82146.0,82145.0,0.2651943]
[1744384901758,1e-08,82159.0,82153.0,0.0608909]
[1744384902053,0.005,82172.0,82171.0,0.1217558]
[1744384902250,0.005,82172.0,82171.0,0.4615558]
[1744384902753,0.00504,82172.0,82171.0,0.4615558]
[1744384903355,0.0001826,82180.0,82179.0,0.1217439]
[1744384903545,0.0001826,82180.0,82179.0,0.4825439]
[1744384904539,7.291e-05,82197.0,82195.0,0.0608595]
[1744384904749,0.24924906,82209.0,82199.0,0.060857]
[1744384904964,0.3608,82234.0,82212.0,0.0608473]
[1744384905149,0.1216921,82214.0,82213.0,0.0608466]
[1744384905348,0.1216921,82214.0,82200.0,0.10364]
[1744384905349,0.1217203,82196.0,82195.0,0.0608596]
[1744384905555,0.1217203,82195.0,82194.0,0.3608]
[1744384906147,0.0742,82196.0,82195.0,0.1217203]
[1744384906449,0.0608546,82203.0,82202.0,0.1217084]
[1744384907059,7.291e-05,82218.0,82217.0,0.1216877]
[1744384907248,7.291e-05,82218.0,82217.0,0.9469277]
[1744384907443,0.005,82224.0,82223.0,0.1216788]
[1744384908058,0.0608246,82243.0,82242.0,0.1824702]
[1744384908354,0.0608246,82243.0,82242.0,0.0608239]
[1744384908554,0.1216596,82237.0,82236.0,0.1216561]
[1744384908955,0.121661,82235.0,82234.0,0.00018249]
[1744384909150,0.1825271,82221.0,82220.0,0.1216799]
[1744384909359,0.1825284,82220.0,82219.0,0.1216832]
[1744384909655,0.1824909,82238.0,82237.0,0.1216544]
[1744384910050,0.0608293,82238.0,82237.0,0.1196544]
[1744384910246,0.00018249,82243.0,82242.0,0.1216507]
[1744384910854,0.00022249,82243.0,82242.0,0.1216507]
[1744384911160,0.1216522,82241.0,82240.0,0.3608]
[1744384911856,0.1216522,82241.0,82240.0,0.4824536]
[1744384912053,0.00022249,82243.0,82242.0,0.1216507]
[1744384912253,7.291e-05,82258.0,82257.0,0.1216285]
[1744384912561,0.12169991,82258.0,82257.0,0.4824285]
[1744384912947,0.4215993,82278.0,82243.0,0.4216241]
[1744384912948,0.1216418,82249.0,82248.0,0.1216417]
[1744384913150,0.1216349,82253.0,82252.0,0.1216329]
[1744384913357,0.1216359,82252.0,82251.0,0.3608]
[1744384913758,0.1216477,82244.0,82243.0,0.3608]
[1744384914054,0.1216522,82241.0,82227.0,0.3608]
[1744384914560,0.1216522,82241.0,82227.0,0.5433086]
[1744384914745,0.1216714,82228.0,82227.0,0.3608]
[1744384914946,0.01237167,82241.0,82220.0,0.3608]
[1744384915151,0.1216818,82221.0,82220.0,0.3608]
[1744384915457,0.11683392,82210.0,82209.0,2e-08]
[1744384915648,0.47763392,82210.0,82209.0,2e-08]
[1744384915847,0.72763392,82210.0,82209.0,2e-08]
[1744384917256,0.1217365,82184.0,82183.0,0.00486716]
[1744384917857,0.1217365,82184.0,82183.0,0.48740516]
[1744384918163,0.1217365,82184.0,82183.0,0.48740436]
[1744384918462,0.1217765,82184.0,82183.0,0.48740436]
[1744384918653,0.1217765,82184.0,82183.0,0.12660436]
[1744384918852,0.1217765,82184.0,82183.0,0.00486716]
[1744384919465,0.1217765,82184.0,82183.0,0.12660516]
[1744384919655,0.1217765,82184.0,82183.0,0.48740516]
[1744384920056,4e-05,82184.0,82183.0,0.48740516]
[1744384920456,0.00018249,82192.0,82191.0,0.1217262]
[1744384920764,0.00018249,82192.0,82191.0,0.4825262]
[1744384921266,0.00022249,82192.0,82191.0,0.4825262]
[1744384921566,0.12194719,82192.0,82191.0,0.4825262]
[1744384921760,0.12194719,82192.0,82183.0,0.36566716]
[1744384921761,0.1217365,82184.0,82183.0,0.36566716]
[1744384922157,0.1217365,82184.0,82183.0,0.48740516]
[1744384922570,0.12146693,82184.0,82183.0,0.00486716]
[1744384923655,0.1217348,82186.0,82185.0,0.1217336]
[1744384923963,0.36098249,82192.0,82191.0,0.1217262]
[1744384924163,0.0608562,82201.0,82183.0,0.00486716]
[1744384924164,0.1217192,82200.0,82199.0,0.1217128]
[1744384924463,0.0608484,82211.0,82199.0,0.3608]
[1744384924661,0.182548,82211.0,82210.0,0.3608]
[1744384925165,0.182588,82211.0,82210.0,0.3608]
[1744384925757,4e-05,82211.0,82210.0,0.482498]
[1744384925963,0.1216966,82211.0,82210.0,0.3608]
[1744384926163,0.1217366,82211.0,82210.0,0.3608]
[1744384927366,0.1217084,82203.0,82202.0,0.00018249]
[1744384927757,0.1217128,82200.0,82199.0,0.46069599]
[1744384927958,0.1217262,82191.0,82190.0,0.3608]
[1744384928451,0.1217365,82184.0,82176.0,0.3608]
[1744384928863,0.1217365,82184.0,82183.0,0.36566716]
[1744384929754,0.1217365,82184.0,82183.0,6e-08]
[1744384929965,0.7325365,82184.0,82183.0,6e-08]
[1744384930666,0.4825365,82184.0,82183.0,6e-08]
[1744384931958,0.4825765,82184.0,82183.0,6e-08]
[1744384934957,0.1217484,82176.0,82175.0,5e-08]
[1744384935666,0.1217602,82168.0,82167.0,0.33880005]
[1744384936162,0.1218002,82168.0,82167.0,0.33880005]
[1744384936861,0.1218002,82168.0,82167.0,0.46056175]
[1744384937363,0.1218002,82168.0,82167.0,0.33880005]
[1744384937664,0.1218002,82168.0,82167.0,0.46056175]
[1744384938365,0.1218002,82168.0,82167.0,0.33880005]
[1744384939862,0.1217602,82168.0,82167.0,0.46056175]
[1744384940165,0.1217602,82168.0,82167.0,0.33880005]
[1744384940166,0.1218002,82168.0,82167.0,0.33880005]
[1744384941165,0.1217677,82163.0,82162.0,0.0021]
[1744384941365,0.0608838,82163.0,82150.0,0.3608]
[1744384941562,0.1826538,82165.0,82159.0,0.36098249]
[1744384941770,0.1826574,82163.0,82162.0,0.0608838]
[1744384941969,0.1826574,82163.0,82162.0,0.2435339]
[1744384942174,0.1826974,82163.0,82162.0,0.0608838]
[1744384942365,0.1217706,82161.0,82160.0,0.065086]
[1744384943165,0.1826559,82161.0,82160.0,0.1217699]
[1744384944869,0.0608846,82162.0,82161.0,0.1217706]
[1744384945374,0.0609246,82162.0,82161.0,0.1217706]
[1744384945864,0.1217721,82160.0,82159.0,0.36098249]
[1744384946265,0.1217721,82160.0,82159.0,0.48275609]
[1744384948273,0.115667,82190.0,82165.0,0.0608822]
[1744384948477,0.0608728,82178.0,82170.0,0.4825573]
[1744384948677,7.291e-05,82176.0,82170.0,0.4825573]
[1744384948876,0.0608728,82178.0,82170.0,0.4825573]
[1744384949074,0.00022249,82171.0,82170.0,0.4825573]
[1744384949275,0.00018249,82171.0,82170.0,0.4825573]
[1744384950077,0.00022249,82171.0,82170.0,0.49562867]
[1744384950280,0.12197829,82171.0,82170.0,0.49562867]
[1744384950475,0.12193829,82171.0,82170.0,0.74562867]
[1744384950780,0.12193829,82171.0,82170.0,0.49562867]
[1744384950981,0.12197829,82171.0,82170.0,0.35186256]
[1744384951171,0.12197829,82171.0,82170.0,0.47361986]
[1744384951571,0.00022249,82171.0,82170.0,0.47361986]
[1744384952077,0.00018249,82171.0,82170.0,0.47361986]
[1744384952775,0.00022249,82171.0,82170.0,0.47361986]
[1744384952971,0.00022249,82171.0,82170.0,0.48983488]
[1744384954880,0.00018249,82171.0,82170.0,0.48983488]
[1744384955080,0.00022249,82171.0,82170.0,0.48983488]
[1744384955278,0.12197829,82171.0,82170.0,0.36807758]
[1744384955479,0.12197829,82171.0,82170.0,0.47361986]
[1744384955680,0.26387829,82171.0,82170.0,0.47379009]
[1744384956368,0.26387829,82171.0,82170.0,0.35198915]
[1744384956574,0.26387829,82171.0,82170.0,0.4605573]
[1744384956779,0.14212249,82171.0,82170.0,0.47374727]
[1744384956979,0.14208249,82171.0,82170.0,0.48997106]
[1744384957184,0.26387829,82171.0,82170.0,0.48997106]
[1744384957483,0.07102249,82171.0,82170.0,0.48997106]
[1744384957686,0.19277829,82171.0,82170.0,0.48997106]
[1744384957883,0.19273829,82171.0,82170.0,0.47678109]
[1744384958082,0.26617829,82171.0,82170.0,0.3388]
[1744384958284,0.26617829,82171.0,82170.0,0.4605573]
[1744384958484,0.07102249,82171.0,82170.0,0.47682517]
[1744384958783,0.00022249,82171.0,82170.0,0.47682517]
[1744384958974,0.00018249,82171.0,82170.0,0.4768197]
[1744384959175,0.00022249,82171.0,82170.0,0.4768197]
[1744384959374,0.00018249,82171.0,82170.0,0.4768197]
[1744384959580,0.00022249,82171.0,82170.0,0.4768197]
[1744384960375,0.0608639,82190.0,82175.0,0.0608749]
[1744384960575,0.0727,82185.0,82184.0,0.1217365]
[1744384960775,0.2655351,82185.0,82184.0,0.8595989]
[1744384961181,0.1438,82185.0,82184.0,0.8595989]
[1744384961582,0.2655351,82185.0,82184.0,0.7378624]
[1744384961896,0.2655751,82185.0,82184.0,0.7378624]
[1744384963683,0.2655751,82185.0,82184.0,0.7158624]
[1744384963986,0.1217469,82177.0,82176.0,0.00018249]
[1744384964388,0.1983469,82177.0,82176.0,0.00018249]
[1744384966279,0.1983469,82177.0,82176.0,9e-08]
[1744384967391,0.7019469,82177.0,82176.0,9e-08]
[1744384967890,0.9519469,82177.0,82176.0,9e-08]
[1744384968682,0.1217751,82158.0,82157.0,0.15235936]
[1744384968986,0.1217929,82146.0,82145.0,0.21748535]
[1744384970588,0.1217929,82146.0,82145.0,0.02169425]
[1744384970794,0.1218003,82141.0,82140.0,0.14371901]
[1744384970979,0.1218003,82141.0,82140.0,0.09353291]
[1744384971385,0.1218403,82141.0,82140.0,0.07153291]
[1744384971780,0.4826403,82141.0,82140.0,1e-08]
[1744384972182,0.1218047,82138.0,82137.0,0.0001826]
[1744384974096,0.2708047,82138.0,82137.0,0.0001826]
[1744384977700,0.2708447,82138.0,82137.0,0.4827888]
[1744384978183,0.1218447,82138.0,82137.0,0.5591888]
[1744384978384,0.1218447,82138.0,82137.0,0.3609826]
[1744384978588,0.1947047,82138.0,82137.0,0.3609826]
[1744384978785,0.2684447,82138.0,82137.0,0.3609826]
[1744384979001,0.2684047,82138.0,82137.0,0.3609826]
[1744384979194,0.2684447,82138.0,82137.0,0.3609826]
[1744384980197,0.2684447,82138.0,82124.0,0.0609126]
[1744384980198,0.57904,82138.0,82112.0,0.3608]
[1744384980398,0.57904,82138.0,82114.0,0.0723]
[1744384980399,0.1218285,82122.0,82114.0,0.0723]
[1744384980593,0.1218285,82122.0,82118.0,0.121834]
[1744384980795,0.2672285,82122.0,82121.0,0.4826299]
[1744384981199,0.0609124,82125.0,82121.0,0.4826299]
[1744384981392,0.328133,82127.0,82126.0,0.1218225]
[1744384981593,0.0001826,82130.0,82129.0,0.1218181]
[1744384981795,5.401e-05,82139.0,82138.0,0.1218047]
[1744384981991,0.0608983,82144.0,82143.0,0.1826922]
[1744384982201,0.005,82146.0,82145.0,0.1217943]
[1744384982402,0.005,82146.0,82145.0,0.5543943]
[1744384982705,0.00504,82146.0,82145.0,0.5543943]
[1744384982895,0.005,82146.0,82145.0,0.6269943]
[1744384983196,0.00504,82146.0,82145.0,0.6269943]
[1744384983399,0.00504,82146.0,82145.0,0.8769943]
[1744384983703,0.0001826,82154.0,82153.0,0.1217825]
[1744384983895,0.0001826,82154.0,82153.0,0.4825825]
[1744384984096,0.0001826,82154.0,82153.0,0.6269825]
[1744384984409,0.0002226,82154.0,82153.0,0.6269825]
[1744384984599,0.0002226,82154.0,82153.0,0.8769825]
[1744384984899,0.21782827,82165.0,82164.0,0.1217662]
[1744384985095,0.21782827,82165.0,82164.0,0.4825662]
[1744384985291,0.21782827,82165.0,82164.0,0.7325662]
[1744384985798,0.33963297,82165.0,82164.0,0.5574662]
[1744384986700,0.48813297,82165.0,82164.0,0.5574662]
[1744384987094,0.48813297,82165.0,82164.0,0.3608]
[1744384987304,0.48813297,82165.0,82164.0,0.4825662]
[1744384987599,0.1218047,82165.0,82164.0,0.4825662]
[1744384988198,0.2720047,82165.0,82164.0,0.4825662]
[1744384988703,0.2720047,82165.0,82164.0,0.3608]
[1744384989199,0.2720047,82165.0,82164.0,0.3388]
[1744384990197,0.1217677,82163.0,82162.0,0.1217686]
[1744384990907,0.1217706,82161.0,82160.0,0.4964853]
[1744384991607,0.1218106,82161.0,82160.0,0.4964853]
[1744384992110,0.1218106,82161.0,82160.0,0.0748]
[1744384992305,0.1217765,82157.0,82156.0,0.0001826]
[1744384993010,0.2682765,82157.0,82156.0,0.0001826]
[1744384993706,0.2683165,82157.0,82156.0,0.0001826]
[1744384995008,0.1218047,82138.0,82137.0,0.3608]
[1744384995198,0.1218047,82138.0,82137.0,0.4826062]
[1744384995904,0.1942047,82138.0,82137.0,0.3608]
[1744384996102,0.1942047,82138.0,82131.0,0.00487024]
[1744384996103,0.1218136,82132.0,82131.0,0.00487024]
[1744384996809,0.13105181,82132.0,82131.0,4e-08]
[1744384997007,0.27625181,82132.0,82131.0,4e-08]
[1744384997910,0.1218448,82111.0,82110.0,0.4826443]
[1744384998109,0.1218448,82111.0,82110.0,0.3608]
[1744384998299,0.1218522,82106.0,82105.0,0.00487178]
[1744384998616,0.4826522,82106.0,82105.0,0.00491178]
[1744384998907,0.4826522,82106.0,82105.0,0.00487178]
[1744384999111,0.4826522,82106.0,82105.0,0.00491178]
[1744384999907,0.1218922,82106.0,82105.0,0.00491178]
[1744385000303,4e-05,82106.0,82105.0,0.12676548]
[1744385000508,0.1218522,82106.0,82105.0,0.24861618]
[1744385000714,0.1218922,82106.0,82105.0,0.24861618]
[1744385001014,0.1218522,82106.0,82105.0,0.24861618]
[1744385001212,0.1218922,82106.0,82105.0,0.24861618]
[1744385001507,4e-05,82106.0,82105.0,0.24861618]
[1744385001914,0.1032,82133.0,82113.0,0.1218418]
[1744385002098,5.401e-05,82118.0,82117.0,0.1218359]
[1744385002615,5.401e-05,82133.0,82119.0,0.0609161]
[1744385002908,0.1218121,82133.0,82132.0,0.4826136]
[1744385003104,0.1218521,82133.0,82132.0,0.1218136]
[1744385003299,0.2847521,82133.0,82132.0,0.1218136]
[1744385003498,0.1218521,82133.0,82132.0,0.1218136]
[1744385003700,4e-05,82133.0,82132.0,0.13110755]
[1744385003913,0.1218121,82133.0,82132.0,0.13110755]
[1744385004214,0.1218521,82133.0,82132.0,0.13110755]
[1744385004916,0.0609082,82131.0,82128.0,0.3608]
[1744385005114,0.1218181,82129.0,82128.0,0.4826185]
[1744385005814,4e-05,82133.0,82132.0,0.1218136]
[1744385006117,0.0814,82140.0,82137.0,0.1218062]
[1744385006414,0.005,82146.0,82137.0,0.4826062]
[1744385006713,0.21786827,82138.0,82137.0,0.7326062]
[1744385006924,0.21782827,82138.0,82137.0,1.1188062]
[1744385007120,0.09336827,82138.0,82137.0,1.1188062]
[1744385007514,0.09332827,82138.0,82137.0,1.1188062]
[1744385007713,0.09336827,82138.0,82137.0,0.8688062]
[1744385008013,0.005,82146.0,82140.0,0.1218018]
[1744385008212,0.005,82146.0,82140.0,0.4826018]
[1744385008820,0.005,82146.0,82145.0,0.1217943]
[1744385009119,0.00504,82146.0,82145.0,0.1217943]
[1744385009919,0.1218003,82141.0,82140.0,0.5434975]
[1744385010120,0.1218003,82141.0,82140.0,0.3608]
[1744385010310,0.1218003,82141.0,82137.0,0.3608]
[1744385010311,0.1218047,82138.0,82137.0,0.3608]
[1744385010711,0.1218092,82135.0,82134.0,0.060905]
[1744385010908,0.121824,82125.0,82123.0,0.4217131]
[1744385012017,0.1218227,82126.0,82125.0,0.1218225]
[1744385012517,0.0001826,82133.0,82126.0,0.0609112]
[1744385012723,0.2738158,82132.0,82131.0,0.1218151]
[1744385012917,0.2738158,82132.0,82131.0,0.4826151]
[1744385014907,0.2738158,82132.0,82131.0,0.3608]
[1744385015111,0.2738158,82132.0,82131.0,0.4826151]
[1744385017923,0.2738158,82132.0,82131.0,0.3608]
[1744385018323,0.121824,82125.0,82124.0,0.0001826]
[1744385018918,0.1218522,82106.0,82104.0,0.3608]
[1744385019522,0.1218537,82105.0,82104.0,0.34367178]
[1744385019720,0.1218596,82101.0,82100.0,0.1]
[1744385020112,0.1218596,82101.0,82100.0,0.10004]
[1744385020318,0.1218596,82101.0,82100.0,0.1]
[1744385020513,0.1218596,82101.0,82100.0,0.10004]
[1744385020724,0.1218596,82101.0,82100.0,0.1]
[1744385020919,0.1218715,82093.0,82092.0,0.0001826]
[1744385021223,0.1218834,82085.0,82084.0,0.28696945]
[1744385021530,0.1218908,82080.0,82079.0,0.00505268]
[1744385021716,0.1218908,82080.0,82079.0,0.00487332]
[1744385021917,0.1218908,82080.0,82079.0,0.00491332]
[1744385022227,0.1218908,82080.0,82079.0,0.00487332]
[1744385022420,0.1218908,82080.0,82079.0,0.12676562]
[1744385022620,0.1218908,82080.0,82079.0,0.00491332]
[1744385022821,0.1218908,82080.0,82079.0,0.00487332]
[1744385023021,0.1219308,82080.0,82079.0,0.00491332]
[1744385023528,0.1219308,82080.0,82079.0,0.00487332]
[1744385023725,0.1219308,82080.0,82079.0,0.00491332]
[1744385024519,0.1219308,82080.0,82079.0,0.00487332]
[1744385024721,0.1219308,82080.0,82079.0,0.00491332]
[1744385025015,0.1218908,82080.0,82079.0,0.00491332]
[1744385025215,0.1219308,82080.0,82079.0,0.12680562]
[1744385025427,0.1218908,82080.0,82079.0,0.12680562]
[1744385025615,0.1218908,82080.0,82079.0,0.00491332]
[1744385026024,0.1218908,82080.0,82079.0,0.00487332]
[1744385026322,0.1219308,82080.0,82079.0,0.00491332]
[1744385026822,0.1219012,82073.0,82072.0,5.4e-05]
[1744385027424,0.1219027,82072.0,82071.0,0.00018272]
[1744385027631,0.1219131,82065.0,82064.0,5.4e-05]
[1744385027828,0.1219205,82060.0,82059.0,7.29e-05]
[1744385028028,0.1219205,82060.0,82059.0,0.1219949]
[1744385028223,0.081,82062.0,82061.0,0.121919]
[1744385028625,0.2029175,82062.0,82061.0,0.121919]
[1744385028824,0.2029175,82062.0,82061.0,0.121959]
[1744385029129,0.2029175,82062.0,82061.0,4e-05]
[1744385029526,0.0609639,82056.0,82055.0,0.1828912]
[1744385029925,0.1638,82056.0,82055.0,0.1828912]
[1744385030734,0.2857264,82056.0,82055.0,0.0609633]
[1744385031336,0.2857264,82056.0,82055.0,0.0610033]
[1744385031536,0.1638,82056.0,82055.0,0.0610033]
[1744385033232,0.1638,82056.0,82055.0,0.1379033]
[1744385034531,0.2857264,82056.0,82055.0,0.0610033]
[1744385034731,0.1638,82056.0,82055.0,0.0610033]
[1744385035636,0.2857264,82056.0,82055.0,0.0610033]
[1744385039230,0.1638,82056.0,82055.0,0.0610033]
[1744385039431,0.2857264,82056.0,82055.0,0.0610033]
[1744385041741,0.2857264,82056.0,82055.0,0.0609633]
[1744385042140,0.2857264,82056.0,82055.0,0.06353037]
[1744385042537,0.2857264,82056.0,82055.0,0.00256707]
[1744385042844,0.1219413,82046.0,82045.0,0.4827407]
[1744385043142,0.1219413,82046.0,82045.0,7.29e-05]
[1744385043327,0.0609722,82044.0,82039.0,0.00017936]
[1744385043534,0.1219681,82028.0,82026.0,0.4827702]
[1744385043830,0.1219681,82028.0,82026.0,0.3608]
[1744385044034,0.2757681,82028.0,82026.0,0.3608]
[1744385044241,0.2757681,82028.0,82027.0,0.00491641]
[1744385044448,0.2757681,82028.0,82027.0,0.00487641]
[1744385044636,0.2757681,82028.0,82027.0,0.00491641]
[1744385044838,0.0609882,82023.0,82019.0,0.00017646]
[1744385045137,0.12198,82020.0,82019.0,0.12210386]
[1744385045331,0.12198,82020.0,82019.0,0.00012246]
[1744385045539,0.27578,82020.0,82019.0,0.00012246]
[1744385045737,0.27578,82020.0,82019.0,0.12210386]
[1744385046234,0.27578,82020.0,82019.0,0.12214386]
[1744385046447,0.63658,82020.0,82019.0,0.12214386]
[1744385046841,0.63658,82020.0,82019.0,0.12210386]
[1744385048932,0.1538,82020.0,82019.0,0.12210386]
[1744385049136,0.1219671,82029.0,82028.0,0.1219681]
[1744385049340,0.1219671,82029.0,82028.0,0.1829513]
[1744385049545,0.3608,82037.0,82030.0,0.0609825]
[1744385049740,0.3608,82037.0,82035.0,0.1219577]
[1744385050445,0.3608,82037.0,82035.0,0.2770577]
[1744385051239,0.1608,82042.0,82035.0,0.2770577]
[1744385051646,0.1219527,82039.0,82035.0,0.2770577]
[1744385051845,0.2827484,82042.0,82035.0,0.2770577]
[1744385052449,0.1608,82042.0,82035.0,0.2770577]
[1744385052640,0.12213903,82036.0,82035.0,0.2770577]
[1744385052942,0.00018283,82036.0,82035.0,0.2770577]
[1744385055045,3e-08,82036.0,82035.0,0.9352577]
[1744385055640,3e-08,82036.0,82035.0,1.0382577]
[1744385057648,0.00043817,82048.0,82047.0,0.1219398]
[1744385057947,0.00043817,82048.0,82047.0,1.2517398]
[1744385058545,0.00043817,82048.0,82047.0,1.2517798]
[1744385059148,0.00043817,82048.0,82047.0,0.8909798]
[1744385059460,0.00018283,82056.0,82055.0,0.1219279]
[1744385059747,0.00018283,82056.0,82055.0,0.4827279]
[1744385059954,0.00018283,82056.0,82055.0,0.5624279]
[1744385060149,0.005,82068.0,82061.0,0.0609592]
[1744385060350,0.1552,82067.0,82066.0,0.1219116]
[1744385061155,0.1219131,82065.0,82064.0,0.3608]
[1744385061345,0.1219131,82065.0,82064.0,0.4827146]
[1744385061652,0.1219531,82065.0,82064.0,0.4827146]
[1744385062446,4e-05,82065.0,82064.0,0.4607146]
[1744385062851,0.2161551,82067.0,82064.0,0.4607146]
[1744385063049,0.1552,82067.0,82066.0,0.1219116]
[1744385063446,0.2771101,82067.0,82066.0,0.1219116]
[1744385063756,0.0609583,82063.0,82059.0,0.0609606]
[1744385063953,0.4827205,82060.0,82059.0,0.0609606]
[1744385064657,0.1219205,82060.0,82059.0,0.0609606]
[1744385067659,0.153,82062.0,82061.0,0.121919]
[1744385067858,0.2749175,82062.0,82061.0,0.121919]
[1744385068160,0.2749575,82062.0,82061.0,0.121919]
[1744385068658,0.2749575,82062.0,82058.0,0.00018283]
[1744385068659,0.51384,82062.0,82058.0,0.00018283]
[1744385068860,0.121922,82059.0,82058.0,0.00018283]
[1744385069354,0.282322,82059.0,82058.0,0.00018283]
[1744385070261,0.1829045,82051.0,82050.0,0.1219342]
[1744385070561,0.1219368,82049.0,82048.0,0.0609691]
[1744385070860,0.0609677,82051.0,82049.0,0.1219368]
[1744385070861,0.1554,82050.0,82049.0,0.1219368]
[1744385071160,0.1554,82050.0,82049.0,0.1969368]
[1744385071757,0.2773358,82050.0,82049.0,0.1969368]
[1744385072458,0.1219368,82049.0,82048.0,4e-05]
[1744385073061,0.1219472,82042.0,82041.0,0.00018283]
[1744385073253,0.1219472,82042.0,82041.0,0.12213153]
[1744385073451,0.2720472,82042.0,82041.0,0.00018283]
[1744385074360,0.2720472,82042.0,82041.0,0.12213153]
[1744385074561,0.060967,82051.0,82049.0,0.0609679]
[1744385074862,0.060967,82051.0,82050.0,0.2438617]
[1744385075049,0.060967,82051.0,82047.0,0.1219397]
[1744385075050,0.0609681,82050.0,82047.0,0.1219397]
[1744385075253,0.182909,82048.0,82047.0,0.1219397]
[1744385076151,0.182909,82048.0,82047.0,0.1219797]
[1744385076559,0.343309,82048.0,82047.0,0.1219797]
[1744385076758,0.2213692,82048.0,82047.0,0.1219797]
[1744385076958,0.1604,82048.0,82047.0,0.1219797]
[1744385077151,0.1604,82048.0,82047.0,0.2032797]
[1744385077963,0.2823383,82048.0,82047.0,0.2032797]
[1744385078162,0.2823383,82048.0,82047.0,0.1219797]
[1744385079661,0.2823383,82048.0,82047.0,0.1970797]
[1744385080568,0.2823383,82048.0,82047.0,0.1219797]
[1744385082765,0.1604,82048.0,82047.0,0.1219797]
[1744385082963,0.1604,82048.0,82047.0,0.2781797]
[1744385083667,0.62787368,82055.0,82054.0,0.1219294]
[1744385084761,0.50594578,82055.0,82054.0,0.1219294]
[1744385084969,0.58174578,82055.0,82054.0,0.2019294]
[1744385085165,0.65734578,82055.0,82054.0,0.2019294]
[1744385085672,0.6341279,82055.0,82054.0,0.2019294]
[1744385085971,0.1219324,82052.0,82051.0,0.182899]
[1744385086373,0.2780324,82052.0,82051.0,0.182899]
[1744385086672,0.2780324,82052.0,82051.0,0.182939]
[1744385086867,0.1219368,82049.0,82048.0,0.4691686]
[1744385087073,0.1219368,82049.0,82048.0,0.4082]
[1744385087273,0.2780368,82049.0,82048.0,0.4082]
[1744385087772,0.2780368,82049.0,82048.0,0.40824]
[1744385087973,0.2780368,82049.0,82048.0,0.3862]
[1744385088161,0.4061,82049.0,82041.0,0.00018283]
[1744385088370,0.1219472,82042.0,82041.0,0.00018283]
[1744385088568,0.1219472,82042.0,82041.0,0.00022283]
[1744385088770,0.3583472,82042.0,82041.0,0.00022283]
[1744385089368,0.159,82042.0,82041.0,0.12217153]
[1744385089792,0.18143223,82049.0,82048.0,0.1219383]
[1744385090284,0.06812923,82049.0,82048.0,0.5627383]
[1744385090485,5.401e-05,82066.0,82048.0,0.5627383]
[1744385090486,9.842e-05,82071.0,82070.0,0.1219056]
[1744385090683,0.00086661,82079.0,82074.0,0.1218997]
[1744385090684,0.07882151,82078.0,82074.0,0.1218997]
[1744385090889,0.1218864,82083.0,82082.0,0.1218878]
[1744385092275,0.0609468,82079.0,82076.0,0.0609477]
[1744385092485,0.1218982,82076.0,82075.0,0.1218969]
[1744385093791,0.1218982,82075.0,82074.0,0.00018283]
[1744385094188,0.1218982,82075.0,82074.0,0.12208253]
[1744385095384,0.1219382,82075.0,82074.0,0.12208253]
[1744385095585,0.1219382,82075.0,82074.0,0.10008253]
[1744385096889,0.1218982,82075.0,82074.0,0.10008253]
[1744385097091,0.1219382,82075.0,82074.0,0.10008253]
[1744385097395,0.1219782,82075.0,82074.0,0.10008253]
[1744385097593,0.1828577,82072.0,82071.0,0.0609519]
[1744385097786,0.2438098,82072.0,82071.0,0.0609519]
[1744385097995,0.2438098,82072.0,82071.0,0.06237041]
[1744385099190,0.1219442,82072.0,82071.0,0.06237041]
[1744385099391,4e-05,82072.0,82071.0,0.06237041]
[1744385099586,0.1219427,82072.0,82071.0,0.06237041]
[1744385099895,0.1219027,82072.0,82071.0,0.06237041]
[1744385100092,0.1219427,82072.0,82071.0,0.06237041]
[1744385100792,0.7327427,82072.0,82071.0,0.00141851]
[1744385100983,0.1219294,82054.0,82048.0,0.21851887]
[1744385101189,0.8435294,82054.0,82049.0,9.841e-05]
[1744385101486,0.8435294,82054.0,82048.0,0.21851887]
[1744385101690,0.8435294,82054.0,82053.0,0.00491487]
[1744385101888,0.1219368,82049.0,82048.0,0.21851887]
[1744385102891,0.1219368,82049.0,82048.0,0.21855887]
[1744385103094,0.0609699,82048.0,82044.0,0.28768926]
[1744385103288,0.4827428,82045.0,82044.0,0.16368926]
[1744385103495,0.1219502,82040.0,82039.0,0.3634235]
[1744385103697,0.1219502,82040.0,82039.0,0.2955312]
[1744385103990,0.1219591,82034.0,82033.0,0.4347943]
[1744385104291,0.7327591,82034.0,82033.0,0.4347943]
[1744385104496,0.7327591,82034.0,82033.0,0.3934685]
[1744385104697,0.4827591,82034.0,82033.0,0.3934685]
[1744385105292,0.4827591,82034.0,82033.0,0.3935085]
[1744385105497,0.7327591,82034.0,82033.0,0.3935085]
[1744385106400,0.4827591,82034.0,82033.0,0.3935085]
[1744385106893,0.0609893,82030.0,82029.0,0.1219783]
[1744385107097,0.00018283,82042.0,82041.0,0.1219609]